[Event "Titled Tuesday Blitz October 19 2021"]
[White "Savchenko, Boris"]
[Black "Brunner, Nicolas"]
[WhiteFideId "4147332"]
[BlackFideId "620246"]
[WhiteElo "2526"]
[BlackElo "2372"]
[Result "1-0"]
[Round "01"]
[TimeControl "180+1"]
[Date "2021.10.19"]
[WhiteClock "0:01:19"]
[BlackClock "0:00:01"]

1. e4 {[%clk 0:02:59]}  e5 {[%clk 0:02:59]} 2. Nf3 {[%clk 0:02:59]}  Nc6 {[%clk 0:02:56]} 3. d4 {[%clk 0:03:00]}  exd4 {[%clk 0:02:56]} 4. Nxd4 {[%clk 0:03:00]}  Nf6 {[%clk 0:02:57]} 5. Nxc6 {[%clk 0:02:59]}  bxc6 {[%clk 0:02:56]} 6. e5 {[%clk 0:03:00]}  Qe7 {[%clk 0:02:54]} 7. Qe2 {[%clk 0:03:01]}  Nd5 {[%clk 0:02:53]} 8. c4 {[%clk 0:03:01]}  Nb6 {[%clk 0:02:48]} 9. Nc3 {[%clk 0:02:59]}  Ba6 {[%clk 0:02:46]} 10. Qe4 {[%clk 0:02:59]}  Qe6 {[%clk 0:02:44]} 11. c5 {[%clk 0:02:52]}  Bxf1 {[%clk 0:02:40]} 12. cxb6 {[%clk 0:02:53]}  Bc4 {[%clk 0:02:37]} 13. bxc7 {[%clk 0:02:52]}  d5 {[%clk 0:02:37]} 14. Qe3 {[%clk 0:02:34]}  Rc8 {[%clk 0:02:26]} 15. b3 {[%clk 0:02:33]}  Ba6 {[%clk 0:02:11]} 16. Na4 {[%clk 0:02:32]}  Rxc7 {[%clk 0:02:08]} 17. f3 {[%clk 0:02:23]}  Be7 {[%clk 0:01:55]} 18. Kf2 {[%clk 0:02:22]}  O-O {[%clk 0:01:55]} 19. Re1 {[%clk 0:02:12]}  c5 {[%clk 0:01:54]} 20. Ba3 {[%clk 0:02:12]}  Rfc8 {[%clk 0:01:32]} 21. Qf4 {[%clk 0:02:07]}  Bb5 {[%clk 0:01:17]} 22. Rac1 {[%clk 0:02:04]}  c4 {[%clk 0:01:13]} 23. Bxe7 {[%clk 0:02:00]}  Qxe7 {[%clk 0:01:13]} 24. Nc3 {[%clk 0:01:58]}  Qc5+ {[%clk 0:01:09]} 25. Kg3 {[%clk 0:01:55]}  Bc6 {[%clk 0:00:45]} 26. Ne2 {[%clk 0:01:52]}  Bb7 {[%clk 0:00:37]} 27. Nd4 {[%clk 0:01:50]}  c3 {[%clk 0:00:37]} 28. e6 {[%clk 0:01:49]}  f6 {[%clk 0:00:33]} 29. e7 {[%clk 0:01:45]}  Rxe7 {[%clk 0:00:30]} 30. Rxc3 {[%clk 0:01:45]}  Qb4 {[%clk 0:00:20]} 31. Rxc8+ {[%clk 0:01:39]}  Bxc8 {[%clk 0:00:20]} 32. Re2 {[%clk 0:01:25]}  Rxe2 {[%clk 0:00:19]} 33. Nxe2 {[%clk 0:01:26]}  Qxf4+ {[%clk 0:00:18]} 34. Kxf4 {[%clk 0:01:25]}  Kf7 {[%clk 0:00:18]} 35. Ke3 {[%clk 0:01:24]}  Ke6 {[%clk 0:00:18]} 36. Kd4 {[%clk 0:01:24]}  Kd6 {[%clk 0:00:16]} 37. Nf4 {[%clk 0:01:24]}  Bb7 {[%clk 0:00:16]} 38. Nh5 {[%clk 0:01:24]}  a5 {[%clk 0:00:04]} 39. Nxg7 {[%clk 0:01:23]}  Bc8 {[%clk 0:00:05]} 40. Ne8+ {[%clk 0:01:21]}  Ke6 {[%clk 0:00:04]} 41. Nc7+ {[%clk 0:01:20]}  Kd6 {[%clk 0:00:04]} 42. Nxd5 {[%clk 0:01:21]}  f5 {[%clk 0:00:04]} 43. Ne3 {[%clk 0:01:19]}  f4 {[%clk 0:00:01]} 44. Nc4+ {[%clk 0:01:19]} 1-0


[Site "https://www.chess.com"]

[Event "Titled Tuesday Blitz October 19 2021"]
[White "Svane, Frederik"]
[Black "Principe, Gerson"]
[WhiteFideId "12923044"]
[BlackFideId "3804550"]
[WhiteElo "2459"]
[BlackElo "2280"]
[Result "1-0"]
[Round "01"]
[TimeControl "180+1"]
[Date "2021.10.19"]
[WhiteClock "0:00:03"]
[BlackClock "0:00:33"]

1. e4 {[%clk 0:03:00]}  c5 {[%clk 0:02:58]} 2. Nf3 {[%clk 0:03:00]}  e6 {[%clk 0:02:58]} 3. d4 {[%clk 0:02:58]}  cxd4 {[%clk 0:02:59]} 4. Nxd4 {[%clk 0:02:58]}  Nf6 {[%clk 0:02:59]} 5. Nc3 {[%clk 0:02:58]}  Nc6 {[%clk 0:03:00]} 6. Be2 {[%clk 0:02:57]}  Bb4 {[%clk 0:03:00]} 7. O-O {[%clk 0:02:57]}  Bxc3 {[%clk 0:02:53]} 8. bxc3 {[%clk 0:02:58]}  Nxe4 {[%clk 0:02:53]} 9. Bd3 {[%clk 0:02:58]}  Nxd4 {[%clk 0:02:35]} 10. Bxe4 {[%clk 0:02:36]}  Nc6 {[%clk 0:02:34]} 11. Ba3 {[%clk 0:02:35]}  f5 {[%clk 0:02:34]} 12. Bxc6 {[%clk 0:02:31]}  bxc6 {[%clk 0:02:22]} 13. Qh5+ {[%clk 0:02:31]}  g6 {[%clk 0:02:21]} 14. Qe2 {[%clk 0:02:31]}  Qf6 {[%clk 0:02:13]} 15. Bd6 {[%clk 0:02:29]}  Rg8 {[%clk 0:02:12]} 16. Qc4 {[%clk 0:02:11]}  a5 {[%clk 0:02:09]} 17. Rfe1 {[%clk 0:02:04]}  Ba6 {[%clk 0:02:09]} 18. Qc5 {[%clk 0:02:04]}  Kf7 {[%clk 0:02:06]} 19. Rab1 {[%clk 0:01:59]}  Rgd8 {[%clk 0:02:05]} 20. Rb6 {[%clk 0:01:36]}  Bb5 {[%clk 0:01:41]} 21. h3 {[%clk 0:01:23]}  Ba6 {[%clk 0:01:23]} 22. a4 {[%clk 0:01:19]}  Qg5 {[%clk 0:01:18]} 23. Re3 {[%clk 0:00:52]}  Qh4 {[%clk 0:01:12]} 24. Bc7 {[%clk 0:00:21]}  Re8 {[%clk 0:01:03]} 25. Qxa5 {[%clk 0:00:04]}  Bd3 {[%clk 0:00:55]} 26. Qb4 {[%clk 0:00:02]}  Bxc2 {[%clk 0:00:52]} 27. Qxh4 {[%clk 0:00:02]}  h5 {[%clk 0:00:41]} 28. Be5 {[%clk 0:00:02]}  Rg8 {[%clk 0:00:33]} 29. Qf6+ {[%clk 0:00:03]}  Ke8 {[%clk 0:00:33]} 30. Bd6 {[%clk 0:00:03]} 1-0


[Site "https://www.chess.com"]

[Event "Titled Tuesday Blitz October 19 2021"]
[White "Tang, Andrew"]
[Black "Sawlin, Leonid"]
[WhiteFideId "2059630"]
[BlackFideId "4689542"]
[WhiteElo "2588"]
[BlackElo "2412"]
[Result "1-0"]
[Round "01"]
[TimeControl "180+1"]
[Date "2021.10.19"]
[WhiteClock "0:00:18"]
[BlackClock "0:00:57"]

1. Nh3 {[%clk 0:02:58]}  d5 {[%clk 0:02:59]} 2. g3 {[%clk 0:02:57]}  Nc6 {[%clk 0:02:59]} 3. Bg2 {[%clk 0:02:57]}  e5 {[%clk 0:02:59]} 4. O-O {[%clk 0:02:56]}  Nf6 {[%clk 0:02:59]} 5. c4 {[%clk 0:02:55]}  Be6 {[%clk 0:02:59]} 6. Ng5 {[%clk 0:02:55]}  h6 {[%clk 0:02:57]} 7. Nxe6 {[%clk 0:02:52]}  fxe6 {[%clk 0:02:58]} 8. Nc3 {[%clk 0:02:49]}  Be7 {[%clk 0:02:54]} 9. d3 {[%clk 0:02:31]}  Rb8 {[%clk 0:02:47]} 10. Qb3 {[%clk 0:02:21]}  Nd4 {[%clk 0:02:46]} 11. Qa4+ {[%clk 0:02:15]}  c6 {[%clk 0:02:46]} 12. e3 {[%clk 0:02:15]}  Nf5 {[%clk 0:02:43]} 13. Qxa7 {[%clk 0:02:07]}  O-O {[%clk 0:02:37]} 14. Qa4 {[%clk 0:02:05]}  Qd7 {[%clk 0:02:26]} 15. Rd1 {[%clk 0:01:56]}  b5 {[%clk 0:02:25]} 16. Qc2 {[%clk 0:01:55]}  b4 {[%clk 0:02:24]} 17. Ne4 {[%clk 0:01:46]}  dxe4 {[%clk 0:02:23]} 18. dxe4 {[%clk 0:01:46]}  Nd4 {[%clk 0:02:24]} 19. exd4 {[%clk 0:01:46]}  exd4 {[%clk 0:02:24]} 20. e5 {[%clk 0:01:30]}  Ng4 {[%clk 0:02:23]} 21. Bf4 {[%clk 0:01:30]}  Bg5 {[%clk 0:02:11]} 22. Qe4 {[%clk 0:01:11]}  Bxf4 {[%clk 0:02:01]} 23. gxf4 {[%clk 0:01:11]}  h5 {[%clk 0:02:02]} 24. Rxd4 {[%clk 0:01:09]}  Qa7 {[%clk 0:02:00]} 25. h3 {[%clk 0:01:03]}  Nxf2 {[%clk 0:01:50]} 26. Kxf2 {[%clk 0:00:59]}  Rxf4+ {[%clk 0:01:51]} 27. Qxf4 {[%clk 0:00:58]}  Rf8 {[%clk 0:01:51]} 28. Qxf8+ {[%clk 0:00:55]}  Kxf8 {[%clk 0:01:52]} 29. Ke3 {[%clk 0:00:55]}  Qc5 {[%clk 0:01:46]} 30. Rd1 {[%clk 0:00:52]}  Qxe5+ {[%clk 0:01:45]} 31. Kf2 {[%clk 0:00:52]}  Kg8 {[%clk 0:01:43]} 32. Bxc6 {[%clk 0:00:51]}  Qf5+ {[%clk 0:01:43]} 33. Kg2 {[%clk 0:00:49]}  Qg5+ {[%clk 0:01:43]} 34. Kh1 {[%clk 0:00:49]}  Qf5 {[%clk 0:01:40]} 35. Bg2 {[%clk 0:00:49]}  Qc2 {[%clk 0:01:39]} 36. R1d2 {[%clk 0:00:43]}  Qb1+ {[%clk 0:01:39]} 37. Kh2 {[%clk 0:00:43]}  Qe1 {[%clk 0:01:33]} 38. Bf3 {[%clk 0:00:36]}  h4 {[%clk 0:01:31]} 39. Bg4 {[%clk 0:00:32]}  Qg3+ {[%clk 0:01:30]} 40. Kh1 {[%clk 0:00:32]}  Qe1+ {[%clk 0:01:30]} 41. Kg2 {[%clk 0:00:32]}  e5 {[%clk 0:01:24]} 42. Rd8+ {[%clk 0:00:30]}  Kh7 {[%clk 0:01:23]} 43. Re2 {[%clk 0:00:29]}  Qg3+ {[%clk 0:01:23]} 44. Kf1 {[%clk 0:00:30]}  Qf4+ {[%clk 0:01:23]} 45. Ke1 {[%clk 0:00:30]}  Qc1+ {[%clk 0:01:22]} 46. Rd1 {[%clk 0:00:28]}  Qxc4 {[%clk 0:01:22]} 47. Rxe5 {[%clk 0:00:28]}  Qf4 {[%clk 0:01:23]} 48. Re2 {[%clk 0:00:26]}  Qg3+ {[%clk 0:01:23]} 49. Kd2 {[%clk 0:00:26]}  Qf4+ {[%clk 0:01:23]} 50. Kc2 {[%clk 0:00:27]}  Qf7 {[%clk 0:01:19]} 51. Kb1 {[%clk 0:00:27]}  b3 {[%clk 0:01:19]} 52. axb3 {[%clk 0:00:26]}  Qxb3 {[%clk 0:01:19]} 53. Red2 {[%clk 0:00:26]}  Kh6 {[%clk 0:01:18]} 54. Rd6+ {[%clk 0:00:26]}  Kg5 {[%clk 0:01:15]} 55. R1d5+ {[%clk 0:00:25]}  Kf4 {[%clk 0:01:15]} 56. Rd4+ {[%clk 0:00:26]}  Kg5 {[%clk 0:01:15]} 57. R6d5+ {[%clk 0:00:26]}  Kh6 {[%clk 0:01:15]} 58. Rh5+ {[%clk 0:00:25]}  Kg6 {[%clk 0:01:15]} 59. Rd6+ {[%clk 0:00:25]}  Kf7 {[%clk 0:01:15]} 60. Rf5+ {[%clk 0:00:26]}  Ke7 {[%clk 0:01:15]} 61. Rd7+ {[%clk 0:00:26]}  Ke8 {[%clk 0:01:13]} 62. Re5+ {[%clk 0:00:27]}  Kf8 {[%clk 0:01:14]} 63. Bh5 {[%clk 0:00:20]}  g6 {[%clk 0:01:05]} 64. Bxg6 {[%clk 0:00:19]}  Qxb2+ {[%clk 0:01:02]} 65. Kxb2 {[%clk 0:00:17]}  Kg8 {[%clk 0:00:57]} 66. Re8# {[%clk 0:00:18]} 1-0


[Site "https://www.chess.com"]

[Event "Titled Tuesday Blitz October 19 2021"]
[White "Tomb, Maroun"]
[Black "Zubov, Alexander"]
[WhiteFideId "5300398"]
[BlackFideId "14109409"]
[WhiteElo "2491"]
[BlackElo "2685"]
[Result "0-1"]
[Round "01"]
[TimeControl "180+1"]
[Date "2021.10.19"]
[WhiteClock "0:00:05"]
[BlackClock "0:01:25"]

1. e4 {[%clk 0:02:52]}  c5 {[%clk 0:02:59]} 2. Ne2 {[%clk 0:02:44]}  e6 {[%clk 0:02:57]} 3. Nbc3 {[%clk 0:02:36]}  a6 {[%clk 0:02:56]} 4. d4 {[%clk 0:02:33]}  cxd4 {[%clk 0:02:56]} 5. Nxd4 {[%clk 0:02:34]}  b5 {[%clk 0:02:57]} 6. a3 {[%clk 0:02:30]}  Bb7 {[%clk 0:02:57]} 7. g3 {[%clk 0:02:30]}  Nc6 {[%clk 0:02:55]} 8. Bg2 {[%clk 0:02:30]}  Nxd4 {[%clk 0:02:56]} 9. Qxd4 {[%clk 0:02:30]}  Ne7 {[%clk 0:02:57]} 10. O-O {[%clk 0:02:29]}  Nc6 {[%clk 0:02:57]} 11. Qd1 {[%clk 0:02:29]}  d6 {[%clk 0:02:56]} 12. b3 {[%clk 0:02:05]}  Be7 {[%clk 0:02:55]} 13. Be3 {[%clk 0:02:02]}  O-O {[%clk 0:02:53]} 14. Qd2 {[%clk 0:02:00]}  Qc7 {[%clk 0:02:50]} 15. Ne2 {[%clk 0:01:53]}  Rac8 {[%clk 0:02:40]} 16. Rfc1 {[%clk 0:01:48]}  Ne5 {[%clk 0:02:37]} 17. h3 {[%clk 0:01:43]}  Rfd8 {[%clk 0:02:36]} 18. f4 {[%clk 0:01:42]}  Nd7 {[%clk 0:02:36]} 19. c4 {[%clk 0:01:37]}  Qb8 {[%clk 0:02:35]} 20. cxb5 {[%clk 0:01:30]}  axb5 {[%clk 0:02:36]} 21. b4 {[%clk 0:01:13]}  Nf6 {[%clk 0:02:29]} 22. Qd3 {[%clk 0:01:10]}  e5 {[%clk 0:02:21]} 23. Nc3 {[%clk 0:01:01]}  Bc6 {[%clk 0:02:20]} 24. Nd5 {[%clk 0:01:00]}  Nxd5 {[%clk 0:02:10]} 25. exd5 {[%clk 0:01:01]}  Bd7 {[%clk 0:02:10]} 26. fxe5 {[%clk 0:00:52]}  dxe5 {[%clk 0:02:10]} 27. Bc5 {[%clk 0:00:52]}  Bg5 {[%clk 0:02:06]} 28. Rd1 {[%clk 0:00:44]}  f5 {[%clk 0:02:03]} 29. d6 {[%clk 0:00:41]}  e4 {[%clk 0:02:02]} 30. Qd5+ {[%clk 0:00:40]}  Kh8 {[%clk 0:02:03]} 31. g4 {[%clk 0:00:38]}  Rf8 {[%clk 0:01:53]} 32. gxf5 {[%clk 0:00:31]}  e3 {[%clk 0:01:53]} 33. Be4 {[%clk 0:00:17]}  Rce8 {[%clk 0:01:42]} 34. Qd3 {[%clk 0:00:16]}  Re5 {[%clk 0:01:33]} 35. Ra2 {[%clk 0:00:15]}  Rfe8 {[%clk 0:01:31]} 36. Bd5 {[%clk 0:00:14]}  Bxf5 {[%clk 0:01:27]} 37. Qd4 {[%clk 0:00:14]}  e2 {[%clk 0:01:26]} 38. Re1 {[%clk 0:00:14]}  Be3+ {[%clk 0:01:26]} 39. Qxe3 {[%clk 0:00:14]}  Rxe3 {[%clk 0:01:26]} 40. Bxe3 {[%clk 0:00:14]}  Qxd6 {[%clk 0:01:25]} 41. Rexe2 {[%clk 0:00:05]} 0-1


[Site "https://www.chess.com"]

[Event "Titled Tuesday Blitz October 19 2021"]
[White "Van der Werf, Mark"]
[Black "Salinas Herrera, Pablo"]
[WhiteFideId "1000470"]
[BlackFideId "3407128"]
[WhiteElo "2398"]
[BlackElo "2541"]
[Result "0-1"]
[Round "01"]
[TimeControl "180+1"]
[Date "2021.10.19"]
[WhiteClock "0:01:10"]
[BlackClock "0:00:21"]

1. c4 {[%clk 0:03:00]}  e5 {[%clk 0:02:58]} 2. g3 {[%clk 0:02:59]}  Nc6 {[%clk 0:02:58]} 3. Bg2 {[%clk 0:02:56]}  Bc5 {[%clk 0:02:58]} 4. Nc3 {[%clk 0:02:54]}  d6 {[%clk 0:02:59]} 5. e3 {[%clk 0:02:54]}  a6 {[%clk 0:02:58]} 6. Nge2 {[%clk 0:02:53]}  Ba7 {[%clk 0:02:58]} 7. O-O {[%clk 0:02:53]}  h5 {[%clk 0:02:57]} 8. h4 {[%clk 0:02:49]}  g5 {[%clk 0:02:56]} 9. hxg5 {[%clk 0:02:46]}  h4 {[%clk 0:02:56]} 10. gxh4 {[%clk 0:02:42]}  Rxh4 {[%clk 0:02:56]} 11. f4 {[%clk 0:02:38]}  exf4 {[%clk 0:02:53]} 12. Nxf4 {[%clk 0:02:37]}  Qxg5 {[%clk 0:02:52]} 13. Ncd5 {[%clk 0:02:30]}  Bg4 {[%clk 0:02:34]} 14. Qe1 {[%clk 0:02:21]}  O-O-O {[%clk 0:02:32]} 15. Qg3 {[%clk 0:02:15]}  Nh6 {[%clk 0:02:28]} 16. d4 {[%clk 0:02:05]}  Nf5 {[%clk 0:02:27]} 17. Qf2 {[%clk 0:02:05]}  Rdh8 {[%clk 0:02:22]} 18. Bd2 {[%clk 0:02:04]}  Ncxd4 {[%clk 0:01:52]} 19. exd4 {[%clk 0:02:00]}  Nxd4 {[%clk 0:01:53]} 20. Be3 {[%clk 0:01:43]}  Be2 {[%clk 0:00:30]} 21. Qxe2 {[%clk 0:01:11]}  Rh1+ {[%clk 0:00:21]} 22. Kf2 {[%clk 0:01:10]}  Qh4# {[%clk 0:00:21]} 0-1


[Site "https://www.chess.com"]

[Event "Titled Tuesday Blitz October 19 2021"]
[White "Wachinger, Guenther"]
[Black "Obolenskikh, Dmitry"]
[WhiteFideId "4604261"]
[BlackFideId "4156013"]
[WhiteElo "2212"]
[BlackElo "2541"]
[Result "0-1"]
[Round "01"]
[TimeControl "180+1"]
[Date "2021.10.19"]
[WhiteClock "0:00:06"]
[BlackClock "0:01:11"]

1. e4 {[%clk 0:03:00]}  e5 {[%clk 0:02:59]} 2. Nf3 {[%clk 0:02:57]}  Nc6 {[%clk 0:02:59]} 3. Nc3 {[%clk 0:02:57]}  Nf6 {[%clk 0:02:59]} 4. a3 {[%clk 0:02:57]}  d5 {[%clk 0:02:59]} 5. Bb5 {[%clk 0:02:57]}  Nxe4 {[%clk 0:02:36]} 6. Qe2 {[%clk 0:02:55]}  Qd6 {[%clk 0:02:31]} 7. Nxe4 {[%clk 0:02:50]}  dxe4 {[%clk 0:02:31]} 8. Qxe4 {[%clk 0:02:51]}  Bd7 {[%clk 0:02:32]} 9. d4 {[%clk 0:02:45]}  f5 {[%clk 0:02:24]} 10. Qe2 {[%clk 0:02:42]}  e4 {[%clk 0:02:24]} 11. Ne5 {[%clk 0:01:48]}  Nxe5 {[%clk 0:02:12]} 12. dxe5 {[%clk 0:01:34]}  Qxe5 {[%clk 0:02:11]} 13. Bxd7+ {[%clk 0:01:33]}  Kxd7 {[%clk 0:02:12]} 14. g3 {[%clk 0:01:29]}  Rd8 {[%clk 0:01:56]} 15. Bf4 {[%clk 0:01:28]}  Qa5+ {[%clk 0:01:55]} 16. Bd2 {[%clk 0:01:20]}  Qa6 {[%clk 0:01:53]} 17. Qxa6 {[%clk 0:00:57]}  bxa6 {[%clk 0:01:52]} 18. Be3 {[%clk 0:00:56]}  Kc6 {[%clk 0:01:34]} 19. Bxa7 {[%clk 0:00:51]}  Bc5 {[%clk 0:01:33]} 20. Bxc5 {[%clk 0:00:51]}  Kxc5 {[%clk 0:01:34]} 21. Ke2 {[%clk 0:00:51]}  Rd4 {[%clk 0:01:32]} 22. Rhd1 {[%clk 0:00:49]}  Rhd8 {[%clk 0:01:32]} 23. Rxd4 {[%clk 0:00:49]}  Rxd4 {[%clk 0:01:31]} 24. Rd1 {[%clk 0:00:48]}  Rxd1 {[%clk 0:01:30]} 25. Kxd1 {[%clk 0:00:49]}  g5 {[%clk 0:01:31]} 26. Ke2 {[%clk 0:00:49]}  f4 {[%clk 0:01:31]} 27. gxf4 {[%clk 0:00:40]}  gxf4 {[%clk 0:01:31]} 28. Kd2 {[%clk 0:00:41]}  Kd5 {[%clk 0:01:30]} 29. Kc3 {[%clk 0:00:37]}  c5 {[%clk 0:01:27]} 30. Kd2 {[%clk 0:00:34]}  c4 {[%clk 0:01:22]} 31. Ke2 {[%clk 0:00:31]}  Kd4 {[%clk 0:01:19]} 32. Kd2 {[%clk 0:00:27]}  c3+ {[%clk 0:01:14]} 33. bxc3+ {[%clk 0:00:26]}  Kc4 {[%clk 0:01:15]} 34. h4 {[%clk 0:00:18]}  h5 {[%clk 0:01:15]} 35. a4 {[%clk 0:00:15]}  a5 {[%clk 0:01:14]} 36. Kd1 {[%clk 0:00:12]}  Kxc3 {[%clk 0:01:14]} 37. Kc1 {[%clk 0:00:12]}  Kb4 {[%clk 0:01:14]} 38. Kd2 {[%clk 0:00:10]}  Kxa4 {[%clk 0:01:13]} 39. Kc3 {[%clk 0:00:08]}  Kb5 {[%clk 0:01:13]} 40. Kd4 {[%clk 0:00:09]}  e3 {[%clk 0:01:12]} 41. Kd3 {[%clk 0:00:05]}  exf2 {[%clk 0:01:11]} 42. Ke2 {[%clk 0:00:05]}  a4 {[%clk 0:01:11]} 43. Kxf2 {[%clk 0:00:06]}  a3 {[%clk 0:01:11]} 0-1


[Site "https://www.chess.com"]

[Event "Titled Tuesday Blitz October 19 2021"]
[White "Zierk, Steven"]
[Black "Stromboli, Ettore"]
[WhiteFideId "2034255"]
[BlackFideId "813761"]
[WhiteElo "2494"]
[BlackElo "2414"]
[Result "1-0"]
[Round "01"]
[TimeControl "180+1"]
[Date "2021.10.19"]
[WhiteClock "0:02:02"]
[BlackClock "0:02:04"]

1. b3 {[%clk 0:02:58]}  Nf6 {[%clk 0:02:27]} 2. Bb2 {[%clk 0:02:57]}  e6 {[%clk 0:02:26]} 3. Nf3 {[%clk 0:02:55]}  Be7 {[%clk 0:02:26]} 4. g4 {[%clk 0:02:55]}  b6 {[%clk 0:02:26]} 5. g5 {[%clk 0:02:52]}  Ne4 {[%clk 0:02:26]} 6. h4 {[%clk 0:02:50]}  f6 {[%clk 0:02:26]} 7. d3 {[%clk 0:02:47]}  Nd6 {[%clk 0:02:26]} 8. e4 {[%clk 0:02:44]}  Bb7 {[%clk 0:02:26]} 9. gxf6 {[%clk 0:02:40]}  gxf6 {[%clk 0:02:24]} 10. Ng5 {[%clk 0:02:18]}  h5 {[%clk 0:02:20]} 11. Be2 {[%clk 0:02:14]}  Kf8 {[%clk 0:02:05]} 12. Bxh5 {[%clk 0:02:07]}  Nf5 {[%clk 0:02:04]} 13. Nf7 {[%clk 0:02:02]} 1-0


[Site "https://www.chess.com"]

[Event "Titled Tuesday Blitz October 19 2021"]
[White "Al Hosani, Omran"]
[Black "Le, Tuan Minh"]
[WhiteFideId "9308733"]
[BlackFideId "12401153"]
[WhiteElo "2259"]
[BlackElo "2450"]
[Result "0-1"]
[Round "02"]
[TimeControl "180+1"]
[Date "2021.10.19"]
[WhiteClock "0:00:04"]
[BlackClock "0:00:24"]

1. d4 {[%clk 0:02:58]}  d5 {[%clk 0:02:54]} 2. c4 {[%clk 0:02:59]}  c6 {[%clk 0:02:55]} 3. Nc3 {[%clk 0:02:59]}  Nf6 {[%clk 0:02:54]} 4. cxd5 {[%clk 0:02:58]}  cxd5 {[%clk 0:02:51]} 5. Bf4 {[%clk 0:02:58]}  Nc6 {[%clk 0:02:52]} 6. e3 {[%clk 0:02:57]}  a6 {[%clk 0:02:49]} 7. Nf3 {[%clk 0:02:39]}  Bg4 {[%clk 0:02:48]} 8. Be2 {[%clk 0:02:30]}  Bxf3 {[%clk 0:02:48]} 9. Bxf3 {[%clk 0:02:30]}  e6 {[%clk 0:02:48]} 10. O-O {[%clk 0:02:29]}  Bd6 {[%clk 0:02:48]} 11. Bxd6 {[%clk 0:02:29]}  Qxd6 {[%clk 0:02:49]} 12. Rc1 {[%clk 0:02:29]}  O-O {[%clk 0:02:49]} 13. a3 {[%clk 0:02:29]}  Rac8 {[%clk 0:02:49]} 14. Na4 {[%clk 0:02:28]}  Rc7 {[%clk 0:02:47]} 15. Nc5 {[%clk 0:02:25]}  Rfc8 {[%clk 0:02:38]} 16. Be2 {[%clk 0:02:18]}  Ne7 {[%clk 0:02:25]} 17. Qb3 {[%clk 0:02:11]}  b6 {[%clk 0:01:54]} 18. Nd3 {[%clk 0:02:06]}  Rc4 {[%clk 0:01:51]} 19. Rfd1 {[%clk 0:01:21]}  g6 {[%clk 0:01:46]} 20. Qa2 {[%clk 0:01:20]}  Rc2 {[%clk 0:01:35]} 21. Bf1 {[%clk 0:01:14]}  Nf5 {[%clk 0:01:16]} 22. h3 {[%clk 0:01:07]}  Ne4 {[%clk 0:01:14]} 23. Rxc2 {[%clk 0:01:04]}  Rxc2 {[%clk 0:01:15]} 24. Qb3 {[%clk 0:01:04]}  Qc7 {[%clk 0:01:11]} 25. Re1 {[%clk 0:00:35]}  h5 {[%clk 0:01:00]} 26. Qa4 {[%clk 0:00:32]}  a5 {[%clk 0:00:57]} 27. Re2 {[%clk 0:00:30]}  Rc6 {[%clk 0:00:46]} 28. Qb5 {[%clk 0:00:30]}  g5 {[%clk 0:00:40]} 29. b4 {[%clk 0:00:21]}  Nc3 {[%clk 0:00:35]} 30. Qa6 {[%clk 0:00:22]}  Nxe2+ {[%clk 0:00:34]} 31. Bxe2 {[%clk 0:00:22]}  axb4 {[%clk 0:00:28]} 32. axb4 {[%clk 0:00:22]}  h4 {[%clk 0:00:25]} 33. Ne5 {[%clk 0:00:22]}  Rc1+ {[%clk 0:00:25]} 34. Bf1 {[%clk 0:00:22]}  Kg7 {[%clk 0:00:24]} 35. Qb5 {[%clk 0:00:15]}  Nd6 {[%clk 0:00:24]} 36. Qe2 {[%clk 0:00:13]}  Ne4 {[%clk 0:00:23]} 37. Qg4 {[%clk 0:00:12]}  Rxf1+ {[%clk 0:00:22]} 38. Kxf1 {[%clk 0:00:09]}  Qc1+ {[%clk 0:00:23]} 39. Ke2 {[%clk 0:00:06]}  Qd2+ {[%clk 0:00:23]} 40. Kf1 {[%clk 0:00:04]}  Qxf2# {[%clk 0:00:24]} 0-1


[Site "https://www.chess.com"]

[Event "Titled Tuesday Blitz October 19 2021"]
[White "Durarbayli, Vasif"]
[Black "Aggelis, Nikolaos"]
[WhiteFideId "13402935"]
[BlackFideId "4213220"]
[WhiteElo "2522"]
[BlackElo "2154"]
[Result "1-0"]
[Round "02"]
[TimeControl "180+1"]
[Date "2021.10.19"]
[WhiteClock "0:00:12"]
[BlackClock "0:00:03"]

1. e4 {[%clk 0:03:00]}  e5 {[%clk 0:02:55]} 2. Nc3 {[%clk 0:02:59]}  Nf6 {[%clk 0:02:53]} 3. d4 {[%clk 0:02:58]}  exd4 {[%clk 0:02:35]} 4. Qxd4 {[%clk 0:02:59]}  Nc6 {[%clk 0:02:35]} 5. Qd3 {[%clk 0:02:59]}  h6 {[%clk 0:02:28]} 6. Bd2 {[%clk 0:02:51]}  Bc5 {[%clk 0:02:27]} 7. f4 {[%clk 0:02:43]}  d6 {[%clk 0:02:18]} 8. O-O-O {[%clk 0:02:42]}  Bg4 {[%clk 0:02:03]} 9. Be2 {[%clk 0:02:39]}  Bxe2 {[%clk 0:02:00]} 10. Ngxe2 {[%clk 0:02:35]}  Qe7 {[%clk 0:02:00]} 11. Ng3 {[%clk 0:02:17]}  O-O-O {[%clk 0:01:51]} 12. Nf5 {[%clk 0:02:14]}  Qf8 {[%clk 0:01:40]} 13. Nd5 {[%clk 0:01:30]}  Nxd5 {[%clk 0:01:35]} 14. exd5 {[%clk 0:01:31]}  Ne7 {[%clk 0:01:34]} 15. Rhe1 {[%clk 0:01:24]}  Nxf5 {[%clk 0:01:31]} 16. Qxf5+ {[%clk 0:01:25]}  Kb8 {[%clk 0:01:27]} 17. Bc3 {[%clk 0:01:26]}  Rg8 {[%clk 0:01:25]} 18. Re2 {[%clk 0:01:15]}  g5 {[%clk 0:01:23]} 19. Rde1 {[%clk 0:01:08]}  gxf4 {[%clk 0:01:21]} 20. Bf6 {[%clk 0:01:08]}  Be3+ {[%clk 0:01:12]} 21. Kb1 {[%clk 0:01:07]}  Re8 {[%clk 0:01:10]} 22. a4 {[%clk 0:00:52]}  h5 {[%clk 0:00:49]} 23. Qxh5 {[%clk 0:00:43]}  Rg6 {[%clk 0:00:47]} 24. Bd4 {[%clk 0:00:34]}  Rd8 {[%clk 0:00:35]} 25. Bxe3 {[%clk 0:00:30]}  fxe3 {[%clk 0:00:36]} 26. g3 {[%clk 0:00:23]}  Qh6 {[%clk 0:00:33]} 27. Qxh6 {[%clk 0:00:20]}  Rxh6 {[%clk 0:00:34]} 28. h4 {[%clk 0:00:21]}  Rh5 {[%clk 0:00:31]} 29. c4 {[%clk 0:00:21]}  f5 {[%clk 0:00:28]} 30. Rxe3 {[%clk 0:00:20]}  f4 {[%clk 0:00:28]} 31. Re8 {[%clk 0:00:20]}  Kc8 {[%clk 0:00:28]} 32. Rxd8+ {[%clk 0:00:20]}  Kxd8 {[%clk 0:00:29]} 33. gxf4 {[%clk 0:00:20]}  Rxh4 {[%clk 0:00:29]} 34. Re4 {[%clk 0:00:21]}  a5 {[%clk 0:00:27]} 35. Kc2 {[%clk 0:00:21]}  Kd7 {[%clk 0:00:23]} 36. Kc3 {[%clk 0:00:18]}  Rh3+ {[%clk 0:00:20]} 37. Kd4 {[%clk 0:00:17]}  Rh2 {[%clk 0:00:20]} 38. b3 {[%clk 0:00:16]}  Rh3 {[%clk 0:00:17]} 39. Re3 {[%clk 0:00:16]}  Rh4 {[%clk 0:00:14]} 40. Ke4 {[%clk 0:00:16]}  Ke7 {[%clk 0:00:14]} 41. Rg3 {[%clk 0:00:17]}  Kf7 {[%clk 0:00:14]} 42. Kf5 {[%clk 0:00:12]}  Rh5+ {[%clk 0:00:14]} 43. Ke4 {[%clk 0:00:12]}  Rh1 {[%clk 0:00:14]} 44. Re3 {[%clk 0:00:11]}  Rh5 {[%clk 0:00:09]} 45. Rc3 {[%clk 0:00:07]}  b6 {[%clk 0:00:07]} 46. Rg3 {[%clk 0:00:07]}  Rh1 {[%clk 0:00:07]} 47. Kf3 {[%clk 0:00:06]}  Rf1+ {[%clk 0:00:06]} 48. Kg4 {[%clk 0:00:07]}  Rh1 {[%clk 0:00:06]} 49. Rh3 {[%clk 0:00:07]}  Re1 {[%clk 0:00:06]} 50. Kf5 {[%clk 0:00:07]}  Kg7 {[%clk 0:00:03]} 51. Rg3+ {[%clk 0:00:08]}  Kf7 {[%clk 0:00:03]} 52. Rh3 {[%clk 0:00:08]}  Kg7 {[%clk 0:00:03]} 53. Rg3+ {[%clk 0:00:09]}  Kf7 {[%clk 0:00:04]} 54. Rg6 {[%clk 0:00:09]}  Rf1 {[%clk 0:00:03]} 55. Rh6 {[%clk 0:00:09]}  Rf3 {[%clk 0:00:03]} 56. Re6 {[%clk 0:00:10]}  Rxb3 {[%clk 0:00:03]} 57. Rh6 {[%clk 0:00:10]}  Kg7 {[%clk 0:00:02]} 58. Rg6+ {[%clk 0:00:10]}  Kf7 {[%clk 0:00:03]} 59. Rf6+ {[%clk 0:00:11]}  Ke7 {[%clk 0:00:03]} 60. Rh6 {[%clk 0:00:11]}  Rc3 {[%clk 0:00:02]} 61. Rh7+ {[%clk 0:00:11]}  Kd8 {[%clk 0:00:02]} 62. Ke6 {[%clk 0:00:12]}  Rxc4 {[%clk 0:00:03]} 63. Rh8# {[%clk 0:00:12]} 1-0


[Site "https://www.chess.com"]